Cogmind - Beta 15 *** ADVENTURER MODE // 2025.07.24 @ 20:37:32 Player: Gentle Jesus Result: Self-destructed Performance ------------- Evolutions (1) 500 Regions Visited (4) 800 Robots Destroyed (21) 105 Value Destroyed (472) 472 Prototype IDs (0) 0 Alien Tech Used (0) 0 Bonus (209) 209 TOTAL SCORE: 2086 Bonus ------- Follower Combat Kills 209 Cogmind --------- Core Integrity 39/400 Matter 211/300 Energy 100/100 System Corruption 0% Temperature Cool (0) Movement Core (400) Ox7 Location -9/Mines Parts ------- > --- POWER (1) -------- (None) > --- PROPULSION (2) --- (None) > --- UTILITY (4) ------ Large Storage Unit Structural Scanner > --- WEAPON (2) ------- Mini Grenade Launcher > --- INVENTORY (15) --- Medium Matter Pod (100) Visual Processing Unit Improved Terrain Scanner Terrain Scan Processor Small Laser Assault Rifle Peak State ------------ > --- POWER ------------ Ion Engine > --- PROPULSION ------- Wheel Wheel > --- UTILITY ---------- Large Storage Unit Structural Scanner Seismic Detector Light Armor Plating > --- WEAPON ----------- Small Laser Mini Grenade Launcher > --- INVENTORY -------- Ion Engine Medium Matter Pod Visual Processing Unit Improved Terrain Scanner Terrain Scan Processor Assault Rifle Grenade Launcher [Rating: 11] Favorites ----------- Power Ion Engine Engine Ion Engine Propulsion Wheel Wheel Wheel Utility Seismic Detector Device Seismic Detector Storage Large Storage Unit Protection Light Armor Plating Weapon Assault Rifle Energy Gun Small Laser Ballistic Gun Assault Rifle Launcher Grenade Launcher Build | -11 -10 -10 -9 -9 ------- Run | Yrd Mat Min Mat Min Slots Evolved 2 | . . . 2 . Power . | . . . . . Propulsion . | . . . . . Utility 2 | . . . 2 . Weapon . | . . . . . Parts Attached 14 | 7 2 . 4 1 Power 2 | 1 . . . 1 Engine 2 | 1 . . . 1 Core . | . . . . . Reactor . | . . . . . Propulsion 2 | 2 . . . . Treads . | . . . . . Leg . | . . . . . Wheel 2 | 2 . . . . Hover . | . . . . . Flight . | . . . . . Utility 6 | 2 1 . 3 . Device 2 | 1 . . 1 . Storage 2 | 1 1 . . . Processor . | . . . . . Hackware . | . . . . . Protection 2 | . . . 2 . Artifact . | . . . . . Weapon 4 | 2 1 . 1 . Energy Gun 1 | 1 . . . . Energy Cannon . | . . . . . Ballistic Gun 1 | 1 . . . . Ballistic Cannon . | . . . . . Launcher 2 | . 1 . 1 . Special Weapon . | . . . . . Impact Weapon . | . . . . . Slashing Weapon . | . . . . . Piercing Weapon . | . . . . . Special Melee Weapon . | . . . . . Unidentified Prototypes . | . . . . . Parts Lost 7 | . . . . 7 Power 2 | . . . . 2 Propulsion 2 | . . . . 2 Utility 2 | . . . . 2 Weapon 1 | . . . . 1 Highest Loss Streak 7 | . . . . 7 To Critical Strikes . | . . . . . Average Backups 4 | . 2 5 5 6 Power . | . 1 1 1 . Propulsion . | . . . . . Utility 2 | . 1 3 2 4 Weapon 1 | . . 1 1 2 Tool/Special . | . . . . . Unused Backups 4 | . . . . 4 Power . | . . . . . Propulsion . | . . . . . Utility 4 | . . . . 4 Weapon . | . . . . . Tool/Special . | . . . . . Average Slot Usage (%) 97 | . 100 100 99 81 Engine 12 | . 14 14 11 7 Wheel 24 | . 28 28 22 16 Device 17 | . 14 14 22 19 Storage 12 | . 14 14 11 11 Protection 4 | . . . 10 7 Energy Gun 7 | . 10 3 9 7 Ballistic Gun 10 | . 14 14 9 . Launcher 6 | . 3 10 3 11 Peak Build Rating 11 | 7 7 7 11 11 Average Rating 7 | 4 7 7 9 9 On Entrance 6 | . 7 7 7 11 Naked Turns . | . . . . . Heaviest Build 35 | 14 31 31 35 32 Greatest Support 20 | 20 20 20 20 20 Greatest Overweight (x) 7 | . 1 1 1 7 Average Overweight (x) . | . . 1 1 1 Largest Inventory Capacity 15 | 8 15 15 15 15 Average Capacity 13 | 7 8 15 15 15 Most Carried 7 | 3 5 5 7 7 Average Carried 4 | . 2 5 5 6 Final Capacity 15 | 8 15 15 15 15 Final Carried 7 | 2 5 5 7 6 Class Distribution -------------------- 100% | Mutant Dominant Class ---------------- Mutant | -10/Materials Mutant | -10/Mines Mutant | -9/Materials Mutant | -9/Mines Resources | -11 -10 -10 -9 -9 ----------- Run | Yrd Mat Min Mat Min Matter Collected 636 | 255 . 174 207 . Remotely . | . . . . . Salvage Created 518 | 49 . 50 338 81 Parts 43 | 5 . 2 34 2 Haulers Intercepted . | . . . . . Recyclers Shooed . | . . . . . Parts Field Recycled . | . . . . . Retrieved Matter . | . . . . . Parts Self-Destructed . | . . . . . Prevented . | . . . . . Kills | -11 -10 -10 -9 -9 ------- Run | Yrd Mat Min Mat Min Combat Hostiles Destroyed 13 | . . 1 9 3 Guns 3 | . . 1 2 . AOE 10 | . . . 7 3 Classes Destroyed 11 | 1 . 1 6 3 Worker 3 | . . . 3 . Builder 1 | . . . 1 . Tunneler 3 | 2 . . 1 . Recycler 1 | . . . . 1 Watcher 1 | . . . 1 . Swarmer 3 | . . . 3 . Grunt 4 | . . 1 3 . Brawler 1 | . . . 1 . Sentry 2 | . . . 2 . Demolisher 2 | . . . . 2 Assembled 1 | . . . . 1 Best Kill Streak 9 | 2 . 1 9 4 Combat Bots Only 5 | . . 1 5 3 Max Kills in Single Turn 3 | 1 . 1 3 2 Gunslinging . | . . . . . Exploded 2 | . . . 2 1 Melee . | . . . . . Uniques/NPCs Destroyed . | . . . . . Combat | -11 -10 -10 -9 -9 -------- Run | Yrd Mat Min Mat Min Hostile Shots Fired 49 | . . 3 27 19 Missed 15 | . . 3 10 2 Hits 34 | . . . 17 17 Melee 6 | . . . . 6 Projectile 28 | . . . 17 11 AOE 12 | . . . . 12 Critical Strikes 1 | . . . 1 . Damage Taken 831 | . 26 6 185 614 Core 367 | . . 6 80 281 Absorbed by Shields . | . . . . . Ignored by Resistances 229 | . 7 . 55 167 Core Remaining (%) 98 | 100 . 97 . . Volleys Fired 37 | 2 1 6 21 7 Largest 2 | 2 1 2 2 2 Hottest 60 | 60 30 60 60 60 Shots Fired 59 | 4 1 9 36 9 Gun 40 | 4 . 9 26 1 Cannon . | . . . . . Launcher 19 | . 1 . 10 8 Special . | . . . . . Kinetic 25 | 2 . 6 17 . Thermal 15 | 2 . 3 9 1 Explosive 19 | . 1 . 10 8 Electromagnetic . | . . . . . Robot Hit Streak 9 | 2 . 9 6 8 Robot Miss Streak 2 | . . 1 2 . Penetration Max . | . . . . . Secondary Targets 1 | . . . 1 . Max Gunslinging Chain 1 | . . . 1 . Shots Hit Robots 37 | 2 . 7 20 8 Core Hits 44 | 2 . 4 23 15 Critical Kills 1 | . . 1 . . Critical Parts Destroyed 1 | . . . 1 . Critical Strikes 2 | . . 1 1 . Destroy 2 | . . 1 1 . Melee Attacks . | . . . . . Impact . | . . . . . Slashing . | . . . . . Piercing . | . . . . . Sneak Attacks . | . . . . . Combat Hostiles . | . . . . . Follow-up Attacks . | . . . . . Damage Inflicted 1035 | 34 . 98 663 240 Guns 308 | 34 . 86 178 10 Cannons . | . . . . . Explosions 715 | . . . 485 230 Melee . | . . . . . Ramming 12 | . . 12 . . Kinetic 179 | 10 . 65 104 . Thermal 129 | 24 . 21 74 10 Explosive 715 | . . . 485 230 Electromagnetic . | . . . . . Impact . | . . . . . Slashing . | . . . . . Piercing . | . . . . . Highest Corruption . | . . . . . Average Corruption . | . . . . . Corruption Purged . | . . . . . Corruption Blocked . | . . . . . Overload Shots . | . . . . . Overflow Damage . | . . . . . Projectiles . | . . . . . Explosions . | . . . . . Melee . | . . . . . Knockbacks . | . . . . . Impact . | . . . . . Kinetic . | . . . . . Secondary . | . . . . . Self-Inflicted Damage 114 | . . 6 33 75 Shots 9 | . . . 2 7 Rammed 1 | . . 1 . . Targets Rammed 1 | . . 1 . . Kicked . | . . . . . Crushed . | . . . . . Highest Temperature 23 | . . . 23 . Average Temperature 16 | . . . 16 . Received Heat Transfer 72 | . . . 72 . Siege Activations . | . . . . . Martial Activations . | . . . . . Shielding Activations . | . . . . . Robots Disrupted . | . . . . . Combat Hostiles . | . . . . . Robots Corrupted . | . . . . . Combat Hostiles . | . . . . . Parts Fried . | . . . . . Impact Corruptions . | . . . . . Robots Melted . | . . . . . Combat Hostiles . | . . . . . Parts Melted . | . . . . . Heat Transferred 300 | 50 . 50 175 25 Parts Sabotaged . | . . . . . Parts Stolen . | . . . . . Parts Stripped . | . . . . . Power Chain Reactions . | . . . . . Alert | -11 -10 -10 -9 -9 ------- Run | Yrd Mat Min Mat Min Maximum Alert Level 1 | . . . 1 . Low Security (%) 91 | 100 100 100 76 100 Level 1 8 | . . . 23 . Level 2 . | . . . . . Level 3 . | . . . . . Level 4 . | . . . . . Level 5 . | . . . . . High Security . | . . . . . Max Security . | . . . . . Peak Influence 309 | 10 6 86 309 94 Initial 94 | . . . 21 94 Average 43 | . . 15 88 66 Influence Increases 682 | 10 9 106 476 81 Destroy 0b10 Robot/C 380 | . . 80 260 40 Destroy 0b10 Robot/NC 50 | 10 . . 35 5 Destroy Leader 104 | . . 20 74 10 Allied During Kill 13 | . . 6 7 . Successful Hack 24 | . 6 . 18 . Disable Machine 9 | . . . 9 . Destroy Structure 102 | . 3 . 73 26 Influence Decreases 620 | 10 9 40 256 305 Entered New Map 237 | . . . 45 192 Time Decay 319 | 10 9 40 210 50 Lost Part 43 | . . . . 43 Lost Ally 21 | . . . 1 20 Squads Dispatched 1 | . . . 1 . Investigation 1 | . . . 1 . Extermination . | . . . . . Reinforcement . | . . . . . Assault . | . . . . . Garrison . | . . . . . Intercept . | . . . . . Searches Triggered . | . . . . . Construction Impeded . | . . . . . Haulers Reinforced . | . . . . . Active Scanning Responses . | . . . . . Cargo Convoy Interrupts . | . . . . . Stealth | -11 -10 -10 -9 -9 --------- Run | Yrd Mat Min Mat Min Distress Signals . | . . . . . Communications Jammed . | . . . . . Distress Signals . | . . . . . Times Spotted 38 | . . 4 15 19 Peak Tracking Total 20 | . . 3 3 20 Tactical Retreats 1 | . . . . 1 Traps | -11 -10 -10 -9 -9 ------- Run | Yrd Mat Min Mat Min Traps Triggered 2 | . 1 . 1 . Indirectly . | . . . . . Trap Hack Attempts . | . . . . . Triggered . | . . . . . Disarmed . | . . . . . Reprogrammed . | . . . . . Reused . | . . . . . Traps Extracted . | . . . . . Installed . | . . . . . Triggered . | . . . . . Machines | -11 -10 -10 -9 -9 ---------- Run | Yrd Mat Min Mat Min Machines Disabled 1 | . . . 1 . Max in Single Turn 1 | . . . 1 . Machines Repaired . | . . . . . Machines Dismantled . | . . . . . Machines Sabotaged . | . . . . . Overloaded Fab Kills . | . . . . . Hacking | -11 -10 -10 -9 -9 --------- Run | Yrd Mat Min Mat Min Machines Accessed 4 | . 1 . 3 . Terminals 4 | . 1 . 3 . Fabricators . | . . . . . Repair Stations . | . . . . . Recycling Units . | . . . . . Scanalyzers . | . . . . . Garrison Access . | . . . . . Total Hacks 7 | . 2 . 5 . Successful 3 | . 1 . 2 . Failed 4 | . 1 . 3 . Catastrophic . | . . . . . Database Lockouts . | . . . . . Manual 6 | . 2 . 4 . Terminals 7 | . 2 . 5 . Fabricators . | . . . . . Repair Stations . | . . . . . Recycling Units . | . . . . . Scanalyzers . | . . . . . Garrison Access . | . . . . . Terminal Hacks 3 | . 1 . 2 . Branch Access Points 2 | . 1 . 1 . Zone Layout 1 | . . . 1 . Fabricator Hacks . | . . . . . Repair Station Hacks . | . . . . . Recycling Unit Hacks . | . . . . . Scanalyzer . | . . . . . Garrison Access Hacks . | . . . . . Unauthorized Hacks . | . . . . . Terminals . | . . . . . Fabricators . | . . . . . Repair Stations . | . . . . . Recycling Units . | . . . . . Scanalyzers . | . . . . . Garrison Access . | . . . . . Data Cores Recovered . | . . . . . Used . | . . . . . Hacking Detections 3 | . . . 3 . Full Trace Events . | . . . . . Feedback Events . | . . . . . Feedback Blocked . | . . . . . Robot Schematics Acquired . | . . . . . Robots Built . | . . . . . Authchips . | . . . . . Time . | . . . . . Total Robot Build Rating . | . . . . . Part Schematics Acquired . | . . . . . Parts Built . | . . . . . Authchips . | . . . . . Time . | . . . . . Total Part Build Rating . | . . . . . Parts Repaired . | . . . . . Time . | . . . . . Parts Recycled . | . . . . . Recycled Matter . | . . . . . Retrieved Matter . | . . . . . Retrieved Components . | . . . . . Parts Scanalyzed . | . . . . . Part Schematics Acquired . | . . . . . Parts Damaged . | . . . . . Bothacking | -11 -10 -10 -9 -9 ------------ Run | Yrd Mat Min Mat Min Used RIF Installer . | . . . . . Robots Hacked . | . . . . . Non-combat . | . . . . . Combat . | . . . . . Robot Hacks Applied . | . . . . . Relay Couplers Released . | . . . . . Fabnet Peak Effective % . | . . . . . Robots Rewired . | . . . . . Allies Hacked . | . . . . . Hacks Repelled . | . . . . . Allies | -11 -10 -10 -9 -9 -------- Run | Yrd Mat Min Mat Min Total Allies 2 | . . 2 . . Largest Group 2 | . . 2 2 1 Highest-Rated Group 41 | . . 41 41 31 Highest-Rated Ally 31 | . . 31 31 31 Total Orders . | . . . . . Ally Attacks 28 | . . 5 15 8 Total Damage 399 | . . 107 166 126 Kills 12 | . . 3 5 4 Allies Corrupted . | . . . . . Allies Melted . | . . . . . Intel | -11 -10 -10 -9 -9 ------- Run | Yrd Mat Min Mat Min Active Infowar (turns) 1218 | 6 304 308 483 117 Structural 600 | . . . 483 117 Seismic 1188 | 6 304 308 483 87 Robot Analysis Total . | . . . . . Derelict Logs Recovered . | . . . . . Drone Launches . | . . . . . Drone Recoveries . | . . . . . Exploration | -11 -10 -10 -9 -9 ------------- Run | Yrd Mat Min Mat Min Turns Passed 1280 | 68 304 308 483 117 Spaces Moved 952 | 63 173 236 393 87 Core 8 | 4 . . . 4 Treads . | . . . . . Legs . | . . . . . Wheels 944 | 59 173 236 393 83 Hover . | . . . . . Flight . | . . . . . Fastest Speed 50 | 50 80 95 95 95 Average Speed 92 | 78 83 95 95 109 Slowest Speed 400 | 80 95 95 95 400 Overloaded Moves . | . . . . . Propulsion Burnouts . | . . . . . Robots Hopped . | . . . . . Potential Cave-ins 2 | . . . 2 . Cave-ins Triggered . | . . . . . Exploration Rate (%) 31 | 3 34 57 43 21 Regions Visited 4 Branch Regions 2 Pre-discovered Areas . | . . . . . Known Exits Taken 2 | . 1 . 1 . Unknown Exits Taken 2 | 1 . 1 . . Scrap Searched 2 | . . 2 . . Spaces Dug 35 | . 3 . 32 . Terrain Destroyed 124 | . 3 . 86 35 Melee . | . . . . . Projectile . | . . . . . AOE 124 | . 3 . 86 35 Terrain Rammed . | . . . . . Walls Destroyed . | . . . . . Machines Disabled . | . . . . . Actions | -11 -10 -10 -9 -9 --------- Run | Yrd Mat Min Mat Min Total 1277 | 74 331 310 463 99 Wait 260 | . 152 67 38 3 Move 948 | 62 172 235 392 87 Hop . | . . . . . Pick Up 9 | 3 3 . 3 . Fast Attach 8 | 6 . . 2 . Attach 3 | 1 . . 1 1 Detach . | . . . . . Swap 9 | . 2 1 5 1 Drop 2 | . 1 . 1 . Fire 37 | 2 1 6 21 7 Melee . | . . . . . Ram 1 | . . 1 . . Kick . | . . . . . Crush . | . . . . . Escape Stasis . | . . . . . Rewire . | . . . . . Trap . | . . . . . Miscellaneous . | . . . . . Route ------- -11/Scrapyard -10/Materials (discovered 2 exits: *Mat / *Min) -10/Mines -9/Materials (discovered 4 exits: [*Mat x2] / *Min x2) -9/Mines History --------- Turn | Location | Event 32 | -11/Scrapyard | Discovered new exit (range 16) 69 | -11/Scrapyard | Entered Materials 102 | -10/Materials | Identified exit to Mines 126 | -10/Materials | Discovered new exit (range 5) 316 | -10/Materials | Build established: Mutant 373 | -10/Materials | Entered Mines 646 | -10/Mines | Discovered new exit (range 3) 681 | -10/Mines | Entered Materials 681 | -9/Materials | Accompanied by 2 allies 681 | -9/Materials | Evolved 2 slots: Utility x2 686 | -9/Materials | Led the pair of lost Derelicts to an unsafe place 1003 | -9/Materials | Identified exit to Mines 1011 | -9/Materials | Discovered new exit (range 8) 1107 | -9/Materials | Discovered new exit (range 10) 1164 | -9/Materials | Entered Mines 1164 | -9/Mines | Accompanied by 1 ally 1211 | -9/Mines | Assembled infested the area 1260 | -9/Mines | Core integrity fell below 50% 1280 | -9/Mines | Core integrity fell below 20% 1281 | -9/Mines | Self-destructed Last Messages --------------- K-01 Serf collects debris. Seismic Detector destroyed. K-01 Serf collects debris. Grenade Launcher destroyed. Ion Engine destroyed. Wheel destroyed. The unstable cave ceiling collapses. D-53 Grenadier destroyed. K-01 Serf collects debris. The unstable cave ceiling collapses. D-53 Grenadier destroyed. K-01 Serf collects debris. The unstable cave ceiling collapses. as-09751 destroyed. R-06 Scavenger destroyed. K-01 Serf collects debris. The unstable cave ceiling collapses. K-01 Serf collects debris. The unstable cave ceiling collapses. K-01 Serf collects debris. Map ----- +----------------------------------------------------+ | ?????????????????????????????????????????????????? | | ?????????????????????????????????????????????????? | | ?????????????????????????????????????????????????? | | ?????????????????????????????????????????????????? | | ?????????????????????????????????????????????????? | | ?????????????????????????????????????????????????? | | ?????????????????????????????????????????????????? | | ?????????????????????????????????????????????????? | | ?????????????????????????????????????????????????? | | ?????????????????????????????????????????????????? | | ???????????????????????????????? ##??????????????? | | ??????????????????????????????? ##??????????????? | | ??????????????????????????????? ##??????????????? | | ???????## ???????????????????## ###?????????????? | | ???????## ??????????????????### ###?????????###?? | | ???????## ???????????????#### ##????????### ?? | | ??? ???## ??????????????#### ##???????### ? | | ??? #### ???????########## ##????????## ? | | ??? #### ?????########### ##????????# ? | | ???? ?????#### ##?????????? ? | | ????? ??? ## # # ####????????? ?? | | ?????## ######### # # ####??####?? ?? | | ####?## ######### # ## ## ###?? ?? | | ####### ## ### # # # ###? #? | | ###### a * ##? ##? | | #### @a %= % #### ##? | | ## ##### # ##?## ##? | | ## ##### k # #### ##?## ##? | | ## #### ## # ## ##### ###### ##? | | ## ########## ###### ###### ##? | | " ## ######################?## ##? | | " ##### ###??????############??#############? | | " ###### ##?????????????????????#############? | | ##?##### ###??????????????????????????????????? | | ##??#########??????????????????????????????????? | | ####????######???????????????????????????????????? | | ####?????????????????????????????????????????????? | | ?????????????????????????????????????????????????? | | | | | | | | | | | | | | | | | | | | | | | | | +----------------------------------------------------+ Best States ------------- Heat Dissipation 28 Energy Generation 10 Energy Capacity 250 Matter Stores 300 Matter Capacity 300 Sight Range 16 Terrain Scan Density 10 Armor Coverage 150 Resistance: KI 20 Resistance: TH 20 Resistance: EX 20 Resistance: EM 20 Resistance: I 20 Resistance: S 20 Resistance: P 20 Weapon Shielding 33 Evasion (%) 44 Offensive Hacking 10 Item Schematics ----------------- None Robot Schematics ------------------ None Fabricated ------------ Nothing Repaired ---------- Nothing Alien Tech Used ----------------- None Achievements -------------- None Challenges ------------ None Game ------ Seed ShrapnelWaveLog Manual? 0 Play Time 00:11:11 Cumulative 114.8 hours Start 2025.07.24 @ 20:27:38 End 2025.07.24 @ 20:37:32 Sessions 1 Manual Loads 0 Difficulty Adventurer Special Mode None Game No. 94 Rogue 0 Adventurer 94 Explorer 0 Win Type - Total 2 Types 2/0/0/0/0/0/0/0/0/0 Lore% 54 Gallery% 53 Achievement% 52 Wizard Run 0 Options --------- Layout 1 ASCII 0 Keyboard 0 Movement Arrows Keybinds 0 Fullscreen 1 Font 24/Smallcaps Map View 50x35 Zoom Use 4% Tactical HUD 0 Map Filters NONE Filters NONE Steam 1 RUN: 5268d0c3-b86b-4b58-8093-6acf6c7be6e2